[Event "*** Titled Tuesday 3|2 Blitz"]
[Site "Chess.com"]
[Date "2016.08.02"]
[Round "3"]
[White "VennyIce"]
[Black "Saitama_Hero"]
[Result "1/2-1/2"]
[WhiteElo "1886"]
[BlackElo "2200"]
[TimeControl "180+2"]
[EndTime "11:36:21 PDT"]
[Termination "Game drawn by repetition"]

1. e4 {[%clk 0:03:01.9]} 1... c5 {[%clk 0:03:00.3]} 2. Nf3 {[%clk 0:03:00.5]}
2... Nc6 {[%clk 0:03:01.7]} 3. Bb5 {[%clk 0:03:01.1]} 3... g6 {[%clk 0:02:59.5]}
4. Bxc6 {[%clk 0:03:01.4]} 4... dxc6 {[%clk 0:02:59.4]} 5. O-O {[%clk
0:03:02.1]} 5... Bg7 {[%clk 0:03:01]} 6. d3 {[%clk 0:03:03]} 6... Nf6 {[%clk
0:02:57.9]} 7. Be3 {[%clk 0:03:00.2]} 7... Nd7 {[%clk 0:02:53.7]} 8. Qc1 {[%clk
0:03:00.3]} 8... h6 {[%clk 0:02:40.1]} 9. Rd1 {[%clk 0:02:59.8]} 9... e5 {[%clk
0:02:40.4]} 10. a4 {[%clk 0:02:54]} 10... Qe7 {[%clk 0:02:38.6]} 11. Na3 {[%clk
0:02:52.7]} 11... b6 {[%clk 0:02:35.1]} 12. Nc4 {[%clk 0:02:48.2]} 12... Nf8
{[%clk 0:02:06.3]} 13. Bd2 {[%clk 0:02:44.1]} 13... Bg4 {[%clk 0:02:05.6]} 14.
Bc3 {[%clk 0:02:35.9]} 14... Bxf3 {[%clk 0:02:05.4]} 15. gxf3 {[%clk 0:02:35.6]}
15... Nd7 {[%clk 0:01:54.6]} 16. f4 {[%clk 0:02:35.3]} 16... O-O {[%clk
0:01:53.9]} 17. fxe5 {[%clk 0:02:35.4]} 17... Nxe5 {[%clk 0:01:52.8]} 18. Nxe5
{[%clk 0:02:34.4]} 18... Bxe5 {[%clk 0:01:53.2]} 19. Bxe5 {[%clk 0:02:35.2]}
19... Qxe5 {[%clk 0:01:55.1]} 20. Rb1 {[%clk 0:02:33.5]} 20... Kh7 {[%clk
0:01:45.8]} 21. Qe3 {[%clk 0:02:33.7]} 21... f5 {[%clk 0:01:44.9]} 22. Rf1
{[%clk 0:02:21.6]} 22... f4 {[%clk 0:01:26.2]} 23. Qh3 {[%clk 0:02:21.3]} 23...
Rae8 {[%clk 0:01:19.4]} 24. f3 {[%clk 0:02:21.6]} 24... Qd4+ {[%clk 0:01:09.7]}
25. Kh1 {[%clk 0:02:21.3]} 25... Re5 {[%clk 0:01:10.8]} 26. Qg2 {[%clk 0:02:15]}
26... Rg5 {[%clk 0:01:10.3]} 27. Qf2 {[%clk 0:02:15.6]} 27... Qe5 {[%clk
0:01:04.8]} 28. Rg1 {[%clk 0:02:15.4]} 28... Rxg1+ {[%clk 0:00:59.4]} 29. Qxg1
{[%clk 0:02:15.2]} 29... h5 {[%clk 0:00:56.2]} 30. Qg2 {[%clk 0:02:11.4]} 30...
g5 {[%clk 0:00:57.1]} 31. Qd2 {[%clk 0:02:10.6]} 31... g4 {[%clk 0:00:56.9]} 32.
fxg4 {[%clk 0:02:10.3]} 32... hxg4 {[%clk 0:00:57.4]} 33. c3 {[%clk 0:02:02.3]}
33... Rf6 {[%clk 0:00:54.5]} 34. Rg1 {[%clk 0:02:02.7]} 34... g3 {[%clk
0:00:46.5]} 35. hxg3 {[%clk 0:02:02.1]} 35... Rh6+ {[%clk 0:00:44.9]} 36. Kg2
{[%clk 0:02:00.4]} 36... Qh5 {[%clk 0:00:45.2]} 37. Qf2 {[%clk 0:01:37.7]} 37...
Qh3+ {[%clk 0:00:17.2]} 38. Kf3 {[%clk 0:01:37.9]} 38... Qh5+ {[%clk 0:00:15.1]}
39. Kg2 {[%clk 0:01:25.9]} 39... Qh3+ {[%clk 0:00:09.8]} 40. Kf3 {[%clk
0:01:26.4]} 40... Qh5+ {[%clk 0:00:11.1]} 41. Kg2 {[%clk 0:01:27.1]} 41... Qh3+
{[%clk 0:00:11.8]} 1/2-1/2

[Event "*** Titled Tuesday 3|2 Blitz"]
[Site "Chess.com"]
[Date "2016.08.02"]
[Round "3"]
[White "Hieronymus00"]
[Black "Tash_Boy"]
[Result "0-1"]
[WhiteElo "2126"]
[BlackElo "2293"]
[TimeControl "180+2"]
[EndTime "11:36:25 PDT"]
[Termination "Tash_Boy won by resignation"]

1. e4 {[%clk 0:03:01.9]} 1... e6 {[%clk 0:02:59.9]} 2. d4 {[%clk 0:03:02.6]}
2... d5 {[%clk 0:02:59]} 3. Nc3 {[%clk 0:03:03.4]} 3... Bb4 {[%clk 0:02:56.9]}
4. a3 {[%clk 0:03:02.9]} 4... Bxc3+ {[%clk 0:02:55.7]} 5. bxc3 {[%clk
0:03:03.7]} 5... c5 {[%clk 0:02:51.2]} 6. e5 {[%clk 0:02:54.3]} 6... Qa5 {[%clk
0:02:50.3]} 7. Bd2 {[%clk 0:02:54.1]} 7... Qa4 {[%clk 0:02:50.1]} 8. Nf3 {[%clk
0:02:26.2]} 8... b6 {[%clk 0:02:48.6]} 9. Bd3 {[%clk 0:01:57.1]} 9... Ba6 {[%clk
0:02:46.4]} 10. O-O {[%clk 0:01:56.9]} 10... Ne7 {[%clk 0:02:41.7]} 11. Bxa6
{[%clk 0:01:34.7]} 11... Nxa6 {[%clk 0:02:41.5]} 12. Re1 {[%clk 0:01:27.2]}
12... Rc8 {[%clk 0:02:40.8]} 13. Bg5 {[%clk 0:01:09.2]} 13... Nf5 {[%clk
0:02:37.3]} 14. g4 {[%clk 0:00:47.8]} 14... Ne7 {[%clk 0:02:37.5]} 15. Bxe7
{[%clk 0:00:47]} 15... Kxe7 {[%clk 0:02:38]} 16. Qd2 {[%clk 0:00:48.3]} 16... h6
{[%clk 0:02:37]} 17. g5 {[%clk 0:00:47.4]} 17... cxd4 {[%clk 0:02:28.6]} 18.
Nxd4 {[%clk 0:00:44.2]} 18... Nc5 {[%clk 0:02:29.2]} 19. f3 {[%clk 0:00:34.3]}
19... hxg5 {[%clk 0:02:15.7]} 20. Qxg5+ {[%clk 0:00:34.5]} 20... Kf8 {[%clk
0:02:15.9]} 21. Re2 {[%clk 0:00:32]} 21... Rh6 {[%clk 0:02:04]} 22. Kh1 {[%clk
0:00:27.1]} 22... Kg8 {[%clk 0:01:57.7]} 23. Qf4 {[%clk 0:00:18.8]} 23... Nd7
{[%clk 0:01:44.6]} 24. Rg1 {[%clk 0:00:18.9]} 24... Rh7 {[%clk 0:01:44.7]} 25.
Reg2 {[%clk 0:00:18.8]} 25... Nf8 {[%clk 0:01:41.1]} 26. Qf6 {[%clk 0:00:16.4]}
26... g6 {[%clk 0:01:41.6]} 27. Nxe6 {[%clk 0:00:15]} 27... Qh4 {[%clk 0:00:46]}
28. Rxg6+ {[%clk 0:00:13.5]} 28... fxg6 {[%clk 0:00:46]} 29. Rxg6+ {[%clk
0:00:13.2]} 29... Nxg6 {[%clk 0:00:46.9]} 30. Qxg6+ {[%clk 0:00:14]} 30... Kh8
{[%clk 0:00:48.5]} 0-1

[Event "*** Titled Tuesday 3|2 Blitz"]
[Site "Chess.com"]
[Date "2016.08.02"]
[Round "3"]
[White "FearlessKing64"]
[Black "Fawolizzo"]
[Result "1-0"]
[WhiteElo "2052"]
[BlackElo "2020"]
[TimeControl "180+2"]
[EndTime "11:36:34 PDT"]
[Termination "FearlessKing64 won on time"]

1. e4 {[%clk 0:03:01.9]} 1... c5 {[%clk 0:02:04.7]} 2. Nf3 {[%clk 0:03:01.4]}
2... d6 {[%clk 0:02:01.4]} 3. d4 {[%clk 0:03:01.7]} 3... cxd4 {[%clk 0:02:01.7]}
4. Nxd4 {[%clk 0:03:03.6]} 4... Nf6 {[%clk 0:02:00.7]} 5. f3 {[%clk 0:03:03.8]}
5... a6 {[%clk 0:02:01.6]} 6. c4 {[%clk 0:03:04]} 6... h5 {[%clk 0:02:01.8]} 7.
Be3 {[%clk 0:03:03.4]} 7... Nc6 {[%clk 0:01:58.6]} 8. Qd2 {[%clk 0:03:03.9]}
8... e6 {[%clk 0:01:59.2]} 9. Nc3 {[%clk 0:03:04.2]} 9... Be7 {[%clk 0:01:58.8]}
10. Rc1 {[%clk 0:03:04.3]} 10... Bd7 {[%clk 0:01:59.7]} 11. Be2 {[%clk
0:03:04.7]} 11... Rc8 {[%clk 0:01:57.8]} 12. O-O {[%clk 0:03:04.8]} 12... O-O
{[%clk 0:01:57.5]} 13. Rfd1 {[%clk 0:03:05]} 13... Ne5 {[%clk 0:01:56.2]} 14. b3
{[%clk 0:03:04.9]} 14... Qe8 {[%clk 0:01:55.2]} 15. Bf1 {[%clk 0:02:59.4]} 15...
Rb8 {[%clk 0:01:41.9]} 16. h3 {[%clk 0:02:55]} 16... b5 {[%clk 0:01:40.3]} 17.
f4 {[%clk 0:02:56.2]} 17... Ng6 {[%clk 0:01:36.3]} 18. cxb5 {[%clk 0:02:40]}
18... axb5 {[%clk 0:01:37.2]} 19. Bd3 {[%clk 0:02:37.2]} 19... b4 {[%clk
0:01:35.6]} 20. Nce2 {[%clk 0:02:37]} 20... d5 {[%clk 0:01:27.5]} 21. e5 {[%clk
0:02:34.3]} 21... Ne4 {[%clk 0:01:27.7]} 22. Bxe4 {[%clk 0:02:28.1]} 22... dxe4
{[%clk 0:01:28.4]} 23. Ng3 {[%clk 0:02:24.8]} 23... f5 {[%clk 0:01:08.8]} 24.
exf6 {[%clk 0:02:21.4]} 24... Bxf6 {[%clk 0:00:59.3]} 25. Nxe4 {[%clk
0:02:21.6]} 25... Bxd4 {[%clk 0:00:51.3]} 26. Qxd4 {[%clk 0:02:18.3]} 26... Bc6
{[%clk 0:00:45.1]} 27. Nd6 {[%clk 0:01:38.8]} 27... Qd7 {[%clk 0:00:43.1]} 28.
Qc5 {[%clk 0:01:28.1]} 28... Bd5 {[%clk 0:00:33]} 29. Rxd5 {[%clk 0:01:22.7]}
29... exd5 {[%clk 0:00:30.5]} 30. Qxd5+ {[%clk 0:01:24.2]} 30... Rf7 {[%clk
0:00:16.9]} 31. Rd1 {[%clk 0:01:10.1]} 31... Rd8 {[%clk 0:00:10]} 32. Qxh5
{[%clk 0:01:02.4]} 1-0

[Event "*** Titled Tuesday 3|2 Blitz"]
[Site "Chess.com"]
[Date "2016.08.02"]
[Round "3"]
[White "lukas_111111"]
[Black "elefante33"]
[Result "0-1"]
[WhiteElo "2253"]
[BlackElo "2449"]
[TimeControl "180+2"]
[EndTime "11:36:57 PDT"]
[Termination "elefante33 won by resignation"]

1. d4 {[%clk 0:03:01.9]} 1... Nf6 {[%clk 0:03:00.4]} 2. c4 {[%clk 0:03:00.1]}
2... e6 {[%clk 0:03:01.5]} 3. Nf3 {[%clk 0:03:00.5]} 3... b6 {[%clk 0:03:01.9]}
4. g3 {[%clk 0:03:01.3]} 4... Bb7 {[%clk 0:03:01.5]} 5. Bg2 {[%clk 0:03:02.2]}
5... c5 {[%clk 0:03:02.1]} 6. d5 {[%clk 0:02:59.9]} 6... exd5 {[%clk 0:03:03.2]}
7. cxd5 {[%clk 0:03:00.3]} 7... Bxd5 {[%clk 0:02:58.4]} 8. Nc3 {[%clk
0:03:01.1]} 8... Bc6 {[%clk 0:02:55.9]} 9. O-O {[%clk 0:02:57.8]} 9... Be7
{[%clk 0:02:54.3]} 10. e4 {[%clk 0:02:58.3]} 10... d6 {[%clk 0:02:54.4]} 11. Nh4
{[%clk 0:02:43.6]} 11... O-O {[%clk 0:02:51.8]} 12. Nf5 {[%clk 0:02:44.6]} 12...
Re8 {[%clk 0:02:31]} 13. Bf4 {[%clk 0:02:40.5]} 13... Bf8 {[%clk 0:02:24.4]} 14.
Bxd6 {[%clk 0:01:51.2]} 14... g6 {[%clk 0:02:00.6]} 15. Bxf8 {[%clk 0:01:46.5]}
15... Kxf8 {[%clk 0:02:01.3]} 16. Nd6 {[%clk 0:01:30.5]} 16... Re6 {[%clk
0:01:55.6]} 17. Ndb5 {[%clk 0:01:10.3]} 17... Nbd7 {[%clk 0:01:49]} 18. Bh3
{[%clk 0:01:06.3]} 18... Re7 {[%clk 0:01:46.2]} 19. Qd6 {[%clk 0:00:58.4]} 19...
Bxb5 {[%clk 0:01:24.6]} 20. Nxb5 {[%clk 0:00:58.5]} 20... Nxe4 {[%clk
0:01:26.3]} 21. Qf4 {[%clk 0:00:54.2]} 21... a6 {[%clk 0:01:08]} 22. Nc7 {[%clk
0:00:53.4]} 22... g5 {[%clk 0:01:07.2]} 23. Qf3 {[%clk 0:00:20.2]} 23... Qxc7
{[%clk 0:01:07]} 24. Bf5 {[%clk 0:00:21.3]} 24... Ndf6 {[%clk 0:01:02.1]} 25.
Rfe1 {[%clk 0:00:20.6]} 25... Rae8 {[%clk 0:01:02.2]} 26. Bxe4 {[%clk
0:00:14.2]} 26... Nxe4 {[%clk 0:00:59.4]} 27. Qf5 {[%clk 0:00:14.2]} 27... Qe5
{[%clk 0:00:47]} 28. Qxh7 {[%clk 0:00:11.9]} 28... Qf6 {[%clk 0:00:45.4]} 29.
Re2 {[%clk 0:00:09]} 29... Nd6 {[%clk 0:00:34.9]} 30. Rd2 {[%clk 0:00:10.1]}
30... Nc4 {[%clk 0:00:30.8]} 31. Rc2 {[%clk 0:00:08.2]} 31... Re1+ {[%clk
0:00:30.7]} 32. Rxe1 {[%clk 0:00:08]} 32... Rxe1+ {[%clk 0:00:32.3]} 33. Kg2
{[%clk 0:00:09.3]} 33... Ne3+ {[%clk 0:00:34]} 0-1

[Event "*** Titled Tuesday 3|2 Blitz"]
[Site "Chess.com"]
[Date "2016.08.02"]
[Round "3"]
[White "Imre91"]
[Black "sandropozo"]
[Result "1-0"]
[WhiteElo "2535"]
[BlackElo "2372"]
[TimeControl "180+2"]
[EndTime "11:37:00 PDT"]
[Termination "Imre91 won by resignation"]

1. d4 {[%clk 0:03:01.9]} 1... d5 {[%clk 0:02:59.3]} 2. Nf3 {[%clk 0:03:02.6]}
2... Nf6 {[%clk 0:02:58.7]} 3. c4 {[%clk 0:03:04]} 3... c6 {[%clk 0:02:59.4]} 4.
Qb3 {[%clk 0:03:03.7]} 4... dxc4 {[%clk 0:02:55.3]} 5. Qxc4 {[%clk 0:03:05.6]}
5... Bg4 {[%clk 0:02:56.2]} 6. Nbd2 {[%clk 0:03:03.3]} 6... Nbd7 {[%clk
0:02:54.7]} 7. g3 {[%clk 0:03:04.3]} 7... e6 {[%clk 0:02:51.8]} 8. Bg2 {[%clk
0:03:05.3]} 8... Be7 {[%clk 0:02:53.1]} 9. O-O {[%clk 0:03:06.3]} 9... O-O
{[%clk 0:02:53.7]} 10. b3 {[%clk 0:02:59.1]} 10... Rc8 {[%clk 0:02:53.9]} 11.
Bb2 {[%clk 0:02:57.4]} 11... b5 {[%clk 0:02:54.4]} 12. Qd3 {[%clk 0:02:57.1]}
12... Bf5 {[%clk 0:02:44.7]} 13. e4 {[%clk 0:02:56.5]} 13... Nc5 {[%clk
0:02:44.2]} 14. Qe3 {[%clk 0:02:52.6]} 14... Ncxe4 {[%clk 0:02:42.1]} 15. Rac1
{[%clk 0:02:50.7]} 15... Nd5 {[%clk 0:02:27.3]} 16. Qe2 {[%clk 0:02:46.3]} 16...
Nxd2 {[%clk 0:02:23.8]} 17. Nxd2 {[%clk 0:02:47.8]} 17... Nb4 {[%clk 0:02:10.1]}
18. Ne4 {[%clk 0:02:42.1]} 18... a5 {[%clk 0:02:06.8]} 19. a3 {[%clk 0:02:42.1]}
19... Nd5 {[%clk 0:02:08.1]} 20. Nc5 {[%clk 0:02:42.3]} 20... Re8 {[%clk
0:02:01.9]} 21. Qd2 {[%clk 0:02:36]} 21... Bg5 {[%clk 0:01:59.3]} 22. f4 {[%clk
0:02:37]} 22... Bf6 {[%clk 0:01:50.5]} 23. Nb7 {[%clk 0:02:31.8]} 23... Qe7
{[%clk 0:01:44.3]} 24. Nxa5 {[%clk 0:02:32.4]} 24... c5 {[%clk 0:01:45.6]} 25.
dxc5 {[%clk 0:02:28.5]} 25... Bxb2 {[%clk 0:01:37.4]} 26. Qxb2 {[%clk
0:02:29.2]} 26... Rxc5 {[%clk 0:01:35.6]} 27. b4 {[%clk 0:02:27.4]} 27... Rxc1
{[%clk 0:01:28.6]} 28. Rxc1 {[%clk 0:02:29.3]} 28... Ne3 {[%clk 0:01:23.2]} 29.
Bf3 {[%clk 0:02:29.5]} 29... Qd6 {[%clk 0:01:15.8]} 30. Nb7 {[%clk 0:02:24.6]}
30... Qb6 {[%clk 0:00:58.5]} 31. Qf2 {[%clk 0:02:24.8]} 31... h6 {[%clk
0:00:50.7]} 32. Rc3 {[%clk 0:02:21.1]} 32... Nc4 {[%clk 0:00:50.2]} 33. Qxb6
{[%clk 0:02:21.8]} 33... Nxb6 {[%clk 0:00:51.3]} 34. Nd6 {[%clk 0:02:23.2]}
34... Rd8 {[%clk 0:00:49.7]} 35. Nxb5 {[%clk 0:02:24.1]} 35... Rd2 {[%clk
0:00:49.8]} 36. g4 {[%clk 0:02:14.2]} 36... Bd3 {[%clk 0:00:48.3]} 37. Nd6
{[%clk 0:02:02.4]} 37... Nd5 {[%clk 0:00:37.5]} 38. Bxd5 {[%clk 0:02:00.4]}
38... exd5 {[%clk 0:00:38.7]} 39. f5 {[%clk 0:01:46.8]} 39... Kf8 {[%clk
0:00:36.7]} 40. Rc7 {[%clk 0:01:47.3]} 40... d4 {[%clk 0:00:31.8]} 41. Rxf7+
{[%clk 0:01:48.2]} 41... Kg8 {[%clk 0:00:32.9]} 42. Rd7 {[%clk 0:01:50.1]} 42...
Kf8 {[%clk 0:00:33.1]} 43. b5 {[%clk 0:01:37.1]} 43... Be2 {[%clk 0:00:28.9]}
44. b6 {[%clk 0:01:32]} 44... Bf3 {[%clk 0:00:29.6]} 45. b7 {[%clk 0:01:30.9]}
45... Rb2 {[%clk 0:00:12.6]} 46. Rd8+ {[%clk 0:01:27.9]} 46... Ke7 {[%clk
0:00:13.7]} 47. b8=Q {[%clk 0:01:29.6]} 47... Rxb8 {[%clk 0:00:10.7]} 48. Rxb8
{[%clk 0:01:31.5]} 48... Kxd6 {[%clk 0:00:12.2]} 49. h3 {[%clk 0:01:33.4]} 49...
Ke5 {[%clk 0:00:13.3]} 50. Kf2 {[%clk 0:01:34.5]} 50... Kf4 {[%clk 0:00:14.4]}
51. Rb4 {[%clk 0:01:35.5]} 51... Ke4 {[%clk 0:00:14.1]} 52. Rxd4+ {[%clk
0:01:35.6]} 1-0

[Event "*** Titled Tuesday 3|2 Blitz"]
[Site "Chess.com"]
[Date "2016.08.02"]
[Round "3"]
[White "profofchess"]
[Black "ChadaevNikolay"]
[Result "0-1"]
[WhiteElo "2303"]
[BlackElo "2516"]
[TimeControl "180+2"]
[EndTime "11:37:09 PDT"]
[Termination "ChadaevNikolay won by resignation"]

1. e4 {[%clk 0:03:01.9]} 1... c5 {[%clk 0:02:59.3]} 2. Nf3 {[%clk 0:03:02.5]}
2... e6 {[%clk 0:03:00.4]} 3. c3 {[%clk 0:03:03.3]} 3... Nf6 {[%clk 0:02:59.9]}
4. Bd3 {[%clk 0:03:04.1]} 4... d5 {[%clk 0:02:56.3]} 5. e5 {[%clk 0:03:04.7]}
5... Nfd7 {[%clk 0:02:56.2]} 6. Bc2 {[%clk 0:03:05.9]} 6... c4 {[%clk
0:02:57.2]} 7. d4 {[%clk 0:03:03.7]} 7... cxd3 {[%clk 0:02:57.8]} 8. Bxd3 {[%clk
0:03:04.3]} 8... Nc6 {[%clk 0:02:59.1]} 9. Bf4 {[%clk 0:03:03.8]} 9... Be7
{[%clk 0:03:00.2]} 10. O-O {[%clk 0:02:36.4]} 10... g5 {[%clk 0:02:59.1]} 11.
Bg3 {[%clk 0:02:37.6]} 11... h5 {[%clk 0:02:59.9]} 12. h3 {[%clk 0:02:36.3]}
12... g4 {[%clk 0:03:00]} 13. hxg4 {[%clk 0:02:35.8]} 13... hxg4 {[%clk
0:03:01.2]} 14. Nd4 {[%clk 0:02:34.9]} 14... Ncxe5 {[%clk 0:02:44]} 15. Bb5
{[%clk 0:02:35.1]} 15... Bd6 {[%clk 0:02:36.6]} 16. Re1 {[%clk 0:02:28.5]} 16...
Qg5 {[%clk 0:02:33.1]} 17. c4 {[%clk 0:01:38.6]} 17... Qh5 {[%clk 0:02:27.2]}
18. Kf1 {[%clk 0:01:39.4]} 18... a6 {[%clk 0:02:20.9]} 19. Bxd7+ {[%clk
0:01:37.4]} 19... Bxd7 {[%clk 0:02:21.3]} 20. cxd5 {[%clk 0:01:37.2]} 20... Qh1+
{[%clk 0:02:21.4]} 21. Ke2 {[%clk 0:01:38.1]} 21... Qxg2 {[%clk 0:02:22.9]} 22.
Nc3 {[%clk 0:01:33.4]} 22... Rc8 {[%clk 0:01:59.1]} 23. Rg1 {[%clk 0:01:31.4]}
23... Qh3 {[%clk 0:01:58.9]} 24. Rh1 {[%clk 0:01:31.4]} 24... Qxh1 {[%clk
0:01:56]} 25. Qxh1 {[%clk 0:01:33.3]} 25... Rxh1 {[%clk 0:01:55.9]} 26. Rxh1
{[%clk 0:01:35.2]} 26... Ke7 {[%clk 0:01:24.7]} 27. dxe6 {[%clk 0:00:57]} 27...
Bxe6 {[%clk 0:01:21.9]} 28. Nxe6 {[%clk 0:00:44.1]} 28... Kxe6 {[%clk
0:01:18.7]} 29. Rh6+ {[%clk 0:00:38.4]} 29... Ng6 {[%clk 0:01:14.4]} 30. Bxd6
{[%clk 0:00:32]} 30... Kxd6 {[%clk 0:01:14]} 31. Rh7 {[%clk 0:00:26.3]} 31...
Ke6 {[%clk 0:01:11.5]} 32. Ke3 {[%clk 0:00:21.5]} 32... b5 {[%clk 0:01:06.7]}
33. Ne2 {[%clk 0:00:21.8]} 33... Ne5 {[%clk 0:01:00]} 34. b3 {[%clk 0:00:15.4]}
34... b4 {[%clk 0:00:48.3]} 35. Nd4+ {[%clk 0:00:16]} 35... Kd5 {[%clk
0:00:48.2]} 36. Nf5 {[%clk 0:00:10.9]} 36... Rc3+ {[%clk 0:00:45.9]} 37. Kf4
{[%clk 0:00:06.1]} 37... Rf3+ {[%clk 0:00:43.5]} 38. Kg5 {[%clk 0:00:07.5]}
38... Rxf2 {[%clk 0:00:44.4]} 39. Rh6 {[%clk 0:00:08.8]} 39... Rxa2 {[%clk
0:00:41.4]} 40. Rd6+ {[%clk 0:00:09.9]} 40... Kc5 {[%clk 0:00:41.9]} 41. Rd4
{[%clk 0:00:10.9]} 41... Nf3+ {[%clk 0:00:42.1]} 0-1

[Event "*** Titled Tuesday 3|2 Blitz"]
[Site "Chess.com"]
[Date "2016.08.02"]
[Round "3"]
[White "dabee"]
[Black "BillieKimbah"]
[Result "1/2-1/2"]
[WhiteElo "2418"]
[BlackElo "2491"]
[TimeControl "180+2"]
[EndTime "11:37:40 PDT"]
[Termination "Game drawn by repetition"]

1. d4 {[%clk 0:03:01.9]} 1... Nf6 {[%clk 0:02:58.4]} 2. Bg5 {[%clk 0:03:02.6]}
2... d5 {[%clk 0:02:58.3]} 3. e3 {[%clk 0:03:01.3]} 3... c5 {[%clk 0:02:58.8]}
4. c3 {[%clk 0:03:00.5]} 4... Nc6 {[%clk 0:02:59]} 5. Nf3 {[%clk 0:03:00.2]}
5... Qb6 {[%clk 0:02:55.7]} 6. Qb3 {[%clk 0:03:01]} 6... c4 {[%clk 0:02:53.7]}
7. Qc2 {[%clk 0:02:57.1]} 7... Ne4 {[%clk 0:02:54]} 8. Bf4 {[%clk 0:02:57.5]}
8... Bf5 {[%clk 0:02:54.8]} 9. Qc1 {[%clk 0:02:32.8]} 9... e6 {[%clk 0:02:44.7]}
10. Nbd2 {[%clk 0:02:33.4]} 10... Bd6 {[%clk 0:02:36.1]} 11. Nxe4 {[%clk
0:02:00.7]} 11... Bxf4 {[%clk 0:02:34.8]} 12. Ng3 {[%clk 0:01:42.6]} 12... Bxg3
{[%clk 0:02:35.4]} 13. hxg3 {[%clk 0:01:42.9]} 13... h6 {[%clk 0:02:36.8]} 14.
Be2 {[%clk 0:01:43.1]} 14... Qc7 {[%clk 0:02:37.2]} 15. Bd1 {[%clk 0:01:43.1]}
15... b5 {[%clk 0:02:35]} 16. Bc2 {[%clk 0:01:44]} 16... Bxc2 {[%clk 0:02:35.7]}
17. Qxc2 {[%clk 0:01:44.7]} 17... b4 {[%clk 0:02:36.9]} 18. e4 {[%clk
0:01:41.6]} 18... Rb8 {[%clk 0:02:30.2]} 19. exd5 {[%clk 0:01:27.7]} 19... exd5
{[%clk 0:02:31]} 20. Rh5 {[%clk 0:01:23.6]} 20... Ne7 {[%clk 0:02:22]} 21. Qa4+
{[%clk 0:01:17.7]} 21... Kf8 {[%clk 0:02:22.5]} 22. Ne5 {[%clk 0:01:16.5]} 22...
g6 {[%clk 0:02:12.5]} 23. Nd7+ {[%clk 0:00:58.3]} 23... Kg7 {[%clk 0:02:12.5]}
24. Re5 {[%clk 0:00:59.2]} 24... Rbe8 {[%clk 0:02:07.6]} 25. Kf1 {[%clk
0:00:42.7]} 25... bxc3 {[%clk 0:02:00.8]} 26. bxc3 {[%clk 0:00:43.2]} 26... Nf5
{[%clk 0:01:29]} 27. Rae1 {[%clk 0:00:32.7]} 27... Rxe5 {[%clk 0:01:27.4]} 28.
Rxe5 {[%clk 0:00:33.6]} 28... h5 {[%clk 0:01:25.9]} 29. Nc5 {[%clk 0:00:28.1]}
29... h4 {[%clk 0:01:23.9]} 30. gxh4 {[%clk 0:00:27.5]} 30... Rxh4 {[%clk
0:01:23.7]} 31. g3 {[%clk 0:00:28.5]} 31... Rh8 {[%clk 0:00:53.9]} 32. Kg2
{[%clk 0:00:29.3]} 32... Qb6 {[%clk 0:00:43.7]} 33. Qd1 {[%clk 0:00:23.7]} 33...
Qb2 {[%clk 0:00:41.1]} 34. Qe1 {[%clk 0:00:21.6]} 34... Qc2 {[%clk 0:00:37.1]}
35. Rxd5 {[%clk 0:00:21.5]} 35... Rh5 {[%clk 0:00:20.7]} 36. Qe5+ {[%clk
0:00:20.6]} 36... Kh7 {[%clk 0:00:21.3]} 37. Qf6 {[%clk 0:00:18.7]} 37... Ne3+
{[%clk 0:00:22.2]} 38. Kf3 {[%clk 0:00:19.4]} 38... Nxd5 {[%clk 0:00:11.9]} 39.
Qxf7+ {[%clk 0:00:20]} 39... Kh8 {[%clk 0:00:13.2]} 40. Qf8+ {[%clk 0:00:21.2]}
40... Kh7 {[%clk 0:00:14.6]} 41. Qf7+ {[%clk 0:00:22.4]} 41... Kh6 {[%clk
0:00:16.2]} 42. Qf8+ {[%clk 0:00:21.3]} 42... Kh7 {[%clk 0:00:16]} 43. Qf7+
{[%clk 0:00:22.3]} 1/2-1/2

[Event "*** Titled Tuesday 3|2 Blitz"]
[Site "Chess.com"]
[Date "2016.08.02"]
[Round "3"]
[White "ecwinslow"]
[Black "maheswaran26"]
[Result "0-1"]
[WhiteElo "2001"]
[BlackElo "2034"]
[TimeControl "180+2"]
[EndTime "11:37:54 PDT"]
[Termination "maheswaran26 won by resignation"]

1. e4 {[%clk 0:02:53.4]} 1... e5 {[%clk 0:02:56.9]} 2. Nf3 {[%clk 0:02:52.8]}
2... Nc6 {[%clk 0:02:53.7]} 3. Bb5 {[%clk 0:02:52.2]} 3... a6 {[%clk 0:02:53.4]}
4. Ba4 {[%clk 0:02:52.7]} 4... d6 {[%clk 0:02:48.9]} 5. c4 {[%clk 0:02:50.2]}
5... g6 {[%clk 0:02:32.1]} 6. Bxc6+ {[%clk 0:02:47.1]} 6... bxc6 {[%clk
0:02:29]} 7. d4 {[%clk 0:02:47.6]} 7... f6 {[%clk 0:02:23.1]} 8. Nc3 {[%clk
0:02:43.5]} 8... Bg7 {[%clk 0:02:16.7]} 9. h3 {[%clk 0:02:39]} 9... Nh6 {[%clk
0:02:07.7]} 10. dxe5 {[%clk 0:02:34.9]} 10... fxe5 {[%clk 0:02:04.6]} 11. Bg5
{[%clk 0:02:34.2]} 11... Qd7 {[%clk 0:02:01.5]} 12. c5 {[%clk 0:02:28.1]} 12...
Nf7 {[%clk 0:02:01.3]} 13. Be3 {[%clk 0:02:25.7]} 13... O-O {[%clk 0:01:58]} 14.
Qb3 {[%clk 0:02:20.9]} 14... a5 {[%clk 0:01:49]} 15. Rd1 {[%clk 0:02:10.1]}
15... Qe6 {[%clk 0:01:47.4]} 16. Qxe6 {[%clk 0:02:07.1]} 16... Bxe6 {[%clk
0:01:44.4]} 17. Ng5 {[%clk 0:01:55.3]} 17... Nxg5 {[%clk 0:01:43.9]} 18. Bxg5
{[%clk 0:01:55.6]} 18... dxc5 {[%clk 0:01:12.9]} 19. Be7 {[%clk 0:01:50.7]}
19... Rfb8 {[%clk 0:01:12]} 20. Bxc5 {[%clk 0:01:26.2]} 20... Rxb2 {[%clk
0:01:11.2]} 21. Rd2 {[%clk 0:01:26.2]} 21... Rab8 {[%clk 0:01:04.3]} 22. Ba3
{[%clk 0:01:23]} 22... Rxd2 {[%clk 0:00:54.3]} 23. Kxd2 {[%clk 0:01:22.9]} 23...
Bc4 {[%clk 0:00:53.9]} 24. Kc2 {[%clk 0:00:55.3]} 24... Kf7 {[%clk 0:00:52.4]}
25. Rd1 {[%clk 0:00:53.6]} 25... Ke6 {[%clk 0:00:51.5]} 26. f3 {[%clk
0:00:49.4]} 26... Bf6 {[%clk 0:00:50.8]} 27. Bc5 {[%clk 0:00:46.4]} 27... h5
{[%clk 0:00:47.9]} 28. g3 {[%clk 0:00:40.7]} 28... g5 {[%clk 0:00:45.2]} 29. Bf2
{[%clk 0:00:36.3]} 29... Rb7 {[%clk 0:00:41]} 30. Be3 {[%clk 0:00:35.1]} 30...
Rb8 {[%clk 0:00:40.1]} 31. Rd2 {[%clk 0:00:34]} 31... Be7 {[%clk 0:00:39]} 32.
Rd1 {[%clk 0:00:31.3]} 32... Ba3 {[%clk 0:00:35.7]} 33. Bc1 {[%clk 0:00:12]}
33... Be7 {[%clk 0:00:33.2]} 34. Bf4 {[%clk 0:00:10.7]} 34... exf4 {[%clk
0:00:32.3]} 0-1